[Event "Titled Tuesday Blitz December 27 Late 2022"]
[White "Garcia Cuenca, Victor"]
[Black "Moral Garcia, Serafin"]
[WhiteFideId "2250829"]
[BlackFideId "2201925"]
[WhiteElo "2324"]
[BlackElo "2238"]
[Result "1-0"]
[Round "05"]
[TimeControl "180+2"]
[Date "2022.12.27"]
[WhiteClock "0:00:03"]
[BlackClock "0:00:14"]

1. b3 {[%clk 0:03:00]}  e5 {[%clk 0:02:57]} 2. Bb2 {[%clk 0:03:01]}  Nc6 {[%clk 0:02:56]} 3. e3 {[%clk 0:03:02]}  Nf6 {[%clk 0:02:56]} 4. Bb5 {[%clk 0:03:01]}  Bd6 {[%clk 0:02:54]} 5. d3 {[%clk 0:02:59]}  Ne7 {[%clk 0:02:49]} 6. d4 {[%clk 0:02:54]}  Ng6 {[%clk 0:02:45]} 7. Nf3 {[%clk 0:02:41]}  exd4 {[%clk 0:02:42]} 8. exd4 {[%clk 0:02:39]}  O-O {[%clk 0:02:42]} 9. O-O {[%clk 0:02:39]}  c6 {[%clk 0:02:40]} 10. Bd3 {[%clk 0:02:39]}  Bc7 {[%clk 0:02:37]} 11. Ne5 {[%clk 0:02:39]}  d6 {[%clk 0:02:34]} 12. Nxg6 {[%clk 0:02:37]}  hxg6 {[%clk 0:02:34]} 13. Nd2 {[%clk 0:02:34]}  d5 {[%clk 0:02:31]} 14. Nf3 {[%clk 0:02:33]}  Bf5 {[%clk 0:02:24]} 15. Ne5 {[%clk 0:02:33]}  Qc8 {[%clk 0:02:17]} 16. Re1 {[%clk 0:02:28]}  Re8 {[%clk 0:02:12]} 17. f3 {[%clk 0:02:15]}  Bxd3 {[%clk 0:02:11]} 18. Qxd3 {[%clk 0:02:14]}  Qf5 {[%clk 0:02:10]} 19. Qxf5 {[%clk 0:02:06]}  gxf5 {[%clk 0:02:09]} 20. Nd3 {[%clk 0:02:02]}  Nd7 {[%clk 0:01:59]} 21. Kf2 {[%clk 0:01:52]}  f6 {[%clk 0:01:57]} 22. g3 {[%clk 0:01:51]}  Kf7 {[%clk 0:01:57]} 23. c3 {[%clk 0:01:45]}  g5 {[%clk 0:01:52]} 24. Ba3 {[%clk 0:01:37]}  g4 {[%clk 0:01:44]} 25. Rxe8 {[%clk 0:01:30]}  Rxe8 {[%clk 0:01:43]} 26. Re1 {[%clk 0:01:31]}  Rxe1 {[%clk 0:01:37]} 27. Nxe1 {[%clk 0:01:32]}  Ke6 {[%clk 0:01:24]} 28. Nd3 {[%clk 0:01:32]}  a5 {[%clk 0:01:09]} 29. Ke3 {[%clk 0:01:32]}  b5 {[%clk 0:01:01]} 30. Nf2 {[%clk 0:01:24]}  gxf3 {[%clk 0:01:00]} 31. Kxf3 {[%clk 0:01:25]}  Bb6 {[%clk 0:00:55]} 32. Nd3 {[%clk 0:01:16]}  b4 {[%clk 0:00:49]} 33. Nf4+ {[%clk 0:00:57]}  Kf7 {[%clk 0:00:44]} 34. Bb2 {[%clk 0:00:57]}  Nf8 {[%clk 0:00:35]} 35. cxb4 {[%clk 0:00:35]}  axb4 {[%clk 0:00:33]} 36. Nd3 {[%clk 0:00:36]}  Ba5 {[%clk 0:00:26]} 37. Bc1 {[%clk 0:00:32]}  Ne6 {[%clk 0:00:24]} 38. Ke3 {[%clk 0:00:32]}  Bb6 {[%clk 0:00:20]} 39. Bb2 {[%clk 0:00:29]}  c5 {[%clk 0:00:21]} 40. dxc5 {[%clk 0:00:28]}  Nxc5 {[%clk 0:00:20]} 41. Nxc5 {[%clk 0:00:29]}  Bxc5+ {[%clk 0:00:20]} 42. Bd4 {[%clk 0:00:28]}  Bd6 {[%clk 0:00:20]} 43. Kd3 {[%clk 0:00:21]}  f4 {[%clk 0:00:20]} 44. g4 {[%clk 0:00:19]}  Kg6 {[%clk 0:00:19]} 45. Ke2 {[%clk 0:00:19]}  f3+ {[%clk 0:00:18]} 46. Kxf3 {[%clk 0:00:19]}  Bxh2 {[%clk 0:00:19]} 47. Bc5 {[%clk 0:00:18]}  f5 {[%clk 0:00:18]} 48. Bxb4 {[%clk 0:00:16]}  fxg4+ {[%clk 0:00:19]} 49. Kxg4 {[%clk 0:00:17]}  Kf6 {[%clk 0:00:19]} 50. Kf3 {[%clk 0:00:17]}  Ke6 {[%clk 0:00:20]} 51. Ke3 {[%clk 0:00:18]}  Bc7 {[%clk 0:00:19]} 52. Kd3 {[%clk 0:00:18]}  Bb6 {[%clk 0:00:19]} 53. Bc3 {[%clk 0:00:18]}  Kd6 {[%clk 0:00:18]} 54. Bd4 {[%clk 0:00:18]}  Bd8 {[%clk 0:00:18]} 55. b4 {[%clk 0:00:18]}  Kc6 {[%clk 0:00:19]} 56. a4 {[%clk 0:00:18]}  Be7 {[%clk 0:00:17]} 57. b5+ {[%clk 0:00:18]}  Kb7 {[%clk 0:00:18]} 58. a5 {[%clk 0:00:17]}  Bd8 {[%clk 0:00:18]} 59. a6+ {[%clk 0:00:17]}  Ka8 {[%clk 0:00:19]} 60. Bc5 {[%clk 0:00:17]}  Bf6 {[%clk 0:00:17]} 61. Bd6 {[%clk 0:00:15]}  Ka7 {[%clk 0:00:16]} 62. Bc5+ {[%clk 0:00:16]}  Ka8 {[%clk 0:00:15]} 63. Ke3 {[%clk 0:00:15]}  Be5 {[%clk 0:00:15]} 64. b6 {[%clk 0:00:12]}  Kb8 {[%clk 0:00:16]} 65. Kd3 {[%clk 0:00:11]}  Ka8 {[%clk 0:00:16]} 66. Bd4 {[%clk 0:00:09]}  Bd6 {[%clk 0:00:17]} 67. Kc2 {[%clk 0:00:08]}  Bc7 {[%clk 0:00:16]} 68. b7+ {[%clk 0:00:02]}  Kb8 {[%clk 0:00:15]} 69. Kb3 {[%clk 0:00:02]}  Bd6 {[%clk 0:00:15]} 70. Ka4 {[%clk 0:00:02]}  Bc7 {[%clk 0:00:14]} 71. Kb5 {[%clk 0:00:03]}  Bd8 {[%clk 0:00:14]} 72. Kc6 {[%clk 0:00:03]}  Bb6 {[%clk 0:00:14]} 73. Be5+ {[%clk 0:00:03]} 1-0


[Site "https://www.chess.com"]

[Event "Titled Tuesday Blitz December 27 Late 2022"]
[White "Gasanov, Eldar"]
[Black "Koutlas, Nikolaos"]
[WhiteFideId "14104466"]
[BlackFideId "25827138"]
[WhiteElo "2481"]
[BlackElo "2341"]
[Result "1-0"]
[Round "05"]
[TimeControl "180+2"]
[Date "2022.12.27"]
[WhiteClock "0:00:34"]
[BlackClock "0:00:04"]

1. d4 {[%clk 0:03:00]}  Nf6 {[%clk 0:02:57]} 2. Nf3 {[%clk 0:02:57]}  d5 {[%clk 0:02:54]} 3. c4 {[%clk 0:02:55]}  e6 {[%clk 0:02:52]} 4. e3 {[%clk 0:02:56]}  Bd6 {[%clk 0:02:50]} 5. a3 {[%clk 0:02:52]}  c6 {[%clk 0:02:50]} 6. b4 {[%clk 0:02:50]}  O-O {[%clk 0:02:49]} 7. Bb2 {[%clk 0:02:51]}  Nbd7 {[%clk 0:02:43]} 8. Bd3 {[%clk 0:02:47]}  Re8 {[%clk 0:02:43]} 9. Ne5 {[%clk 0:02:43]}  dxc4 {[%clk 0:02:36]} 10. Nxc4 {[%clk 0:02:41]}  Bc7 {[%clk 0:02:34]} 11. O-O {[%clk 0:02:38]}  Nb6 {[%clk 0:02:30]} 12. Nbd2 {[%clk 0:02:34]}  Nxc4 {[%clk 0:02:11]} 13. Nxc4 {[%clk 0:02:35]}  a5 {[%clk 0:01:59]} 14. bxa5 {[%clk 0:02:28]}  Bxa5 {[%clk 0:01:53]} 15. Nxa5 {[%clk 0:02:28]}  Qxa5 {[%clk 0:01:46]} 16. e4 {[%clk 0:02:26]}  e5 {[%clk 0:01:38]} 17. dxe5 {[%clk 0:02:20]}  Ng4 {[%clk 0:01:38]} 18. Qc2 {[%clk 0:01:57]}  Nxe5 {[%clk 0:01:32]} 19. Be2 {[%clk 0:01:58]}  h6 {[%clk 0:01:16]} 20. h3 {[%clk 0:01:32]}  Ng6 {[%clk 0:01:00]} 21. f4 {[%clk 0:01:23]}  Qb6+ {[%clk 0:00:50]} 22. Kh1 {[%clk 0:01:19]}  Qe3 {[%clk 0:00:49]} 23. Bd3 {[%clk 0:01:09]}  Nh4 {[%clk 0:00:19]} 24. Rae1 {[%clk 0:01:00]}  Qg3 {[%clk 0:00:18]} 25. Re2 {[%clk 0:00:54]}  Ra5 {[%clk 0:00:16]} 26. Bc3 {[%clk 0:00:52]}  Rc5 {[%clk 0:00:15]} 27. Qb2 {[%clk 0:00:44]}  Qxd3 {[%clk 0:00:11]} 28. Bxg7 {[%clk 0:00:43]}  Rxe4 {[%clk 0:00:10]} 29. Bxh6 {[%clk 0:00:42]}  Qd4 {[%clk 0:00:07]} 30. Qxd4 {[%clk 0:00:40]}  Rxd4 {[%clk 0:00:06]} 31. Re8+ {[%clk 0:00:40]}  Kh7 {[%clk 0:00:07]} 32. Bg5 {[%clk 0:00:41]}  Nxg2 {[%clk 0:00:04]} 33. Rxc8 {[%clk 0:00:39]}  Ne3 {[%clk 0:00:04]} 34. Rg1 {[%clk 0:00:39]}  Nf5 {[%clk 0:00:04]} 35. Rc7 {[%clk 0:00:38]}  Rd3 {[%clk 0:00:02]} 36. Rxf7+ {[%clk 0:00:37]}  Kg6 {[%clk 0:00:03]} 37. Rf6+ {[%clk 0:00:36]}  Kh5 {[%clk 0:00:03]} 38. Kh2 {[%clk 0:00:35]}  Rc2+ {[%clk 0:00:02]} 39. Rg2 {[%clk 0:00:36]}  Rxg2+ {[%clk 0:00:01]} 40. Kxg2 {[%clk 0:00:36]}  Rd2+ {[%clk 0:00:01]} 41. Kf3 {[%clk 0:00:36]}  Nh4+ {[%clk 0:00:02]} 42. Bxh4 {[%clk 0:00:35]}  Rd3+ {[%clk 0:00:02]} 43. Ke4 {[%clk 0:00:35]}  Rxh3 {[%clk 0:00:02]} 44. Bg5 {[%clk 0:00:36]}  Rxa3 {[%clk 0:00:02]} 45. Rf7 {[%clk 0:00:33]}  Kg4 {[%clk 0:00:03]} 46. Rxb7 {[%clk 0:00:33]}  Ra4+ {[%clk 0:00:03]} 47. Ke5 {[%clk 0:00:34]}  Ra5+ {[%clk 0:00:03]} 48. Kd6 {[%clk 0:00:34]}  c5 {[%clk 0:00:03]} 49. Rc7 {[%clk 0:00:34]}  Ra6+ {[%clk 0:00:03]} 50. Kxc5 {[%clk 0:00:34]}  Rf6 {[%clk 0:00:04]} 51. Bxf6 {[%clk 0:00:34]} 1-0


[Site "https://www.chess.com"]

[Event "Titled Tuesday Blitz December 27 Late 2022"]
[White "Goltsev, Dmitry"]
[Black "Ibadov, Dashgyn"]
[WhiteFideId "24176710"]
[BlackFideId "24107514"]
[WhiteElo "2269"]
[BlackElo "2391"]
[Result "0-1"]
[Round "05"]
[TimeControl "180+2"]
[Date "2022.12.27"]
[WhiteClock "0:00:52"]
[BlackClock "0:00:09"]

1. e4 {[%clk 0:03:00]}  c5 {[%clk 0:02:58]} 2. Nf3 {[%clk 0:03:00]}  Nc6 {[%clk 0:02:58]} 3. d4 {[%clk 0:03:01]}  cxd4 {[%clk 0:02:59]} 4. Nxd4 {[%clk 0:03:02]}  Nf6 {[%clk 0:03:00]} 5. Nc3 {[%clk 0:03:02]}  e5 {[%clk 0:03:00]} 6. Nf5 {[%clk 0:03:03]}  d5 {[%clk 0:02:57]} 7. exd5 {[%clk 0:03:04]}  Bxf5 {[%clk 0:02:54]} 8. dxc6 {[%clk 0:03:04]}  Qxd1+ {[%clk 0:02:53]} 9. Nxd1 {[%clk 0:03:05]}  bxc6 {[%clk 0:02:51]} 10. Ne3 {[%clk 0:03:06]}  Be6 {[%clk 0:02:47]} 11. Bc4 {[%clk 0:03:04]}  Nd5 {[%clk 0:02:47]} 12. Bb3 {[%clk 0:02:58]}  a5 {[%clk 0:02:40]} 13. O-O {[%clk 0:02:57]}  a4 {[%clk 0:02:37]} 14. Bxd5 {[%clk 0:02:56]}  cxd5 {[%clk 0:02:37]} 15. Rd1 {[%clk 0:02:55]}  d4 {[%clk 0:02:36]} 16. Nf1 {[%clk 0:02:54]}  Bc5 {[%clk 0:02:10]} 17. Nd2 {[%clk 0:02:49]}  Ke7 {[%clk 0:02:07]} 18. Ne4 {[%clk 0:02:47]}  Rhc8 {[%clk 0:01:55]} 19. c3 {[%clk 0:02:41]}  Bb6 {[%clk 0:01:52]} 20. Bd2 {[%clk 0:02:32]}  f5 {[%clk 0:01:29]} 21. Ng5 {[%clk 0:02:30]}  h6 {[%clk 0:01:29]} 22. Nxe6 {[%clk 0:02:27]}  Kxe6 {[%clk 0:01:30]} 23. cxd4 {[%clk 0:02:23]}  Bxd4 {[%clk 0:01:30]} 24. Rab1 {[%clk 0:02:20]}  Rc2 {[%clk 0:01:28]} 25. Be3 {[%clk 0:02:19]}  Rxb2 {[%clk 0:01:24]} 26. Rxb2 {[%clk 0:02:11]}  Bxb2 {[%clk 0:01:25]} 27. Bc5 {[%clk 0:02:08]}  Bd4 {[%clk 0:01:18]} 28. Bb4 {[%clk 0:02:05]}  Rb8 {[%clk 0:01:12]} 29. a3 {[%clk 0:02:04]}  Rc8 {[%clk 0:01:12]} 30. Kh1 {[%clk 0:01:59]}  Bxf2 {[%clk 0:01:06]} 31. Rd6+ {[%clk 0:01:59]}  Kf7 {[%clk 0:01:06]} 32. g3 {[%clk 0:01:59]}  Bc5 {[%clk 0:00:55]} 33. Rd7+ {[%clk 0:01:54]}  Kf6 {[%clk 0:00:54]} 34. Bxc5 {[%clk 0:01:42]}  Rxc5 {[%clk 0:00:55]} 35. Ra7 {[%clk 0:01:42]}  Rc4 {[%clk 0:00:53]} 36. Ra6+ {[%clk 0:01:40]}  Kg5 {[%clk 0:00:48]} 37. Kg2 {[%clk 0:01:40]}  e4 {[%clk 0:00:48]} 38. h4+ {[%clk 0:01:40]}  Kh5 {[%clk 0:00:46]} 39. Kh3 {[%clk 0:01:39]}  g5 {[%clk 0:00:43]} 40. Rf6 {[%clk 0:01:36]}  gxh4 {[%clk 0:00:20]} 41. Rxf5+ {[%clk 0:01:36]}  Kg6 {[%clk 0:00:20]} 42. Ra5 {[%clk 0:01:33]}  hxg3 {[%clk 0:00:18]} 43. Kxg3 {[%clk 0:01:34]}  Rc3+ {[%clk 0:00:14]} 44. Kf4 {[%clk 0:01:35]}  Rxa3 {[%clk 0:00:13]} 45. Ra6+ {[%clk 0:01:35]}  Kg7 {[%clk 0:00:10]} 46. Ra7+ {[%clk 0:01:35]}  Kg6 {[%clk 0:00:09]} 47. Ra6+ {[%clk 0:01:35]}  Kh5 {[%clk 0:00:09]} 48. Kxe4 {[%clk 0:01:32]}  Ra1 {[%clk 0:00:10]} 49. Kf3 {[%clk 0:01:29]}  a3 {[%clk 0:00:07]} 50. Kg3 {[%clk 0:01:24]}  Kg5 {[%clk 0:00:05]} 51. Kg2 {[%clk 0:01:23]}  h5 {[%clk 0:00:03]} 52. Ra5+ {[%clk 0:01:23]}  Kg4 {[%clk 0:00:03]} 53. Kh2 {[%clk 0:01:23]}  h4 {[%clk 0:00:03]} 54. Ra4+ {[%clk 0:01:23]}  Kg5 {[%clk 0:00:02]} 55. Kg2 {[%clk 0:01:22]}  Kh5 {[%clk 0:00:01]} 56. Ra5+ {[%clk 0:01:22]}  Kg4 {[%clk 0:00:01]} 57. Kh2 {[%clk 0:01:23]}  Kf4 {[%clk 0:00:01]} 58. Ra4+ {[%clk 0:01:23]}  Ke3 {[%clk 0:00:02]} 59. Rxh4 {[%clk 0:01:23]}  Kd2 {[%clk 0:00:02]} 60. Rc4 {[%clk 0:01:21]}  Kd3 {[%clk 0:00:02]} 61. Rc8 {[%clk 0:01:21]}  Rb1 {[%clk 0:00:02]} 62. Ra8 {[%clk 0:01:20]}  Rb3 {[%clk 0:00:03]} 63. Rc8 {[%clk 0:01:16]}  a2 {[%clk 0:00:02]} 64. Ra8 {[%clk 0:01:16]}  Rb2+ {[%clk 0:00:03]} 65. Kg3 {[%clk 0:01:17]}  Kc2 {[%clk 0:00:03]} 66. Rf8 {[%clk 0:01:03]}  Kb1 {[%clk 0:00:03]} 67. Rf1+ {[%clk 0:01:03]}  Kc2 {[%clk 0:00:04]} 68. Rf2+ {[%clk 0:01:03]}  Kb3 {[%clk 0:00:04]} 69. Rf3+ {[%clk 0:01:04]}  Ka4 {[%clk 0:00:05]} 70. Rf8 {[%clk 0:01:00]}  Rb1 {[%clk 0:00:04]} 71. Ra8+ {[%clk 0:00:52]}  Kb3 {[%clk 0:00:05]} 72. Rb8+ {[%clk 0:00:52]}  Kc4 {[%clk 0:00:05]} 73. Rc8+ {[%clk 0:00:52]}  Kd5 {[%clk 0:00:05]} 74. Rd8+ {[%clk 0:00:52]}  Ke6 {[%clk 0:00:05]} 75. Ra8 {[%clk 0:00:52]}  a1=Q {[%clk 0:00:05]} 76. Rf8 {[%clk 0:00:53]}  Rg1+ {[%clk 0:00:05]} 77. Kh4 {[%clk 0:00:52]}  Rh1+ {[%clk 0:00:05]} 78. Kg5 {[%clk 0:00:51]}  Qg1+ {[%clk 0:00:05]} 79. Kf4 {[%clk 0:00:52]}  Qf2+ {[%clk 0:00:05]} 80. Ke4 {[%clk 0:00:50]}  Rh4+ {[%clk 0:00:06]} 81. Kd3 {[%clk 0:00:50]}  Rd4+ {[%clk 0:00:07]} 82. Kc3 {[%clk 0:00:50]}  Qd2+ {[%clk 0:00:07]} 83. Kb3 {[%clk 0:00:51]}  Rb4+ {[%clk 0:00:08]} 84. Ka3 {[%clk 0:00:52]}  Qb2# {[%clk 0:00:09]} 0-1


[Site "https://www.chess.com"]

[Event "Titled Tuesday Blitz December 27 Late 2022"]
[White "Grekh, Andrey"]
[Black "Kleiman, Jake"]
[WhiteFideId "14112418"]
[BlackFideId "2020041"]
[WhiteElo "2393"]
[BlackElo "2399"]
[Result "0-1"]
[Round "05"]
[TimeControl "180+2"]
[Date "2022.12.27"]
[WhiteClock "0:00:41"]
[BlackClock "0:01:12"]

1. e4 {[%clk 0:03:00]}  e5 {[%clk 0:02:59]} 2. Nf3 {[%clk 0:03:00]}  Nc6 {[%clk 0:03:00]} 3. Nc3 {[%clk 0:03:00]}  Nf6 {[%clk 0:03:00]} 4. d4 {[%clk 0:03:00]}  exd4 {[%clk 0:03:01]} 5. Nxd4 {[%clk 0:03:00]}  Bb4 {[%clk 0:03:02]} 6. Nxc6 {[%clk 0:02:59]}  bxc6 {[%clk 0:03:03]} 7. Bd3 {[%clk 0:02:59]}  O-O {[%clk 0:03:03]} 8. O-O {[%clk 0:02:58]}  Re8 {[%clk 0:03:02]} 9. Qf3 {[%clk 0:02:52]}  d5 {[%clk 0:02:47]} 10. exd5 {[%clk 0:02:51]}  cxd5 {[%clk 0:02:48]} 11. Bg5 {[%clk 0:02:47]}  Be6 {[%clk 0:02:45]} 12. h3 {[%clk 0:02:41]}  h6 {[%clk 0:02:41]} 13. Bh4 {[%clk 0:02:39]}  Rb8 {[%clk 0:02:38]} 14. Rad1 {[%clk 0:02:36]}  Be7 {[%clk 0:02:35]} 15. b3 {[%clk 0:02:35]}  Rb4 {[%clk 0:02:34]} 16. Bg3 {[%clk 0:02:29]}  c5 {[%clk 0:02:34]} 17. Ne2 {[%clk 0:02:16]}  Bd6 {[%clk 0:02:31]} 18. Bxd6 {[%clk 0:02:12]}  Qxd6 {[%clk 0:02:32]} 19. c3 {[%clk 0:02:09]}  Rbb8 {[%clk 0:02:32]} 20. Nf4 {[%clk 0:02:07]}  Rbd8 {[%clk 0:02:26]} 21. Rfe1 {[%clk 0:02:05]}  Bc8 {[%clk 0:02:20]} 22. Bc2 {[%clk 0:02:01]}  Rxe1+ {[%clk 0:02:18]} 23. Rxe1 {[%clk 0:02:01]}  a5 {[%clk 0:02:15]} 24. Nd3 {[%clk 0:01:29]}  Kf8 {[%clk 0:02:10]} 25. Ne5 {[%clk 0:01:29]}  Bb7 {[%clk 0:01:58]} 26. Nc4 {[%clk 0:00:57]}  Qc7 {[%clk 0:01:47]} 27. Na3 {[%clk 0:00:51]}  d4 {[%clk 0:01:38]} 28. Qd3 {[%clk 0:00:50]}  Qc6 {[%clk 0:01:27]} 29. f3 {[%clk 0:00:49]}  Qc7 {[%clk 0:01:19]} 30. Nb5 {[%clk 0:00:43]}  Qg3 {[%clk 0:01:17]} 31. Qe2 {[%clk 0:00:41]}  Re8 {[%clk 0:01:12]} 0-1


[Site "https://www.chess.com"]

[Event "Titled Tuesday Blitz December 27 Late 2022"]
[White "Gubajdullin, Alexei"]
[Black "Bilan, Danila"]
[WhiteFideId "4141202"]
[BlackFideId "24161918"]
[WhiteElo "2285"]
[BlackElo "2303"]
[Result "1-0"]
[Round "05"]
[TimeControl "180+2"]
[Date "2022.12.27"]
[WhiteClock "0:01:19"]
[BlackClock "0:00:02"]

1. d4 {[%clk 0:03:00]}  d5 {[%clk 0:02:58]} 2. Nf3 {[%clk 0:03:00]}  Nf6 {[%clk 0:02:57]} 3. Bf4 {[%clk 0:03:00]}  c5 {[%clk 0:02:55]} 4. e3 {[%clk 0:03:00]}  Qb6 {[%clk 0:02:51]} 5. Nc3 {[%clk 0:02:58]}  Bg4 {[%clk 0:02:27]} 6. Bb5+ {[%clk 0:02:55]}  Nc6 {[%clk 0:02:21]} 7. dxc5 {[%clk 0:02:53]}  Qxc5 {[%clk 0:02:17]} 8. h3 {[%clk 0:02:51]}  Bxf3 {[%clk 0:02:07]} 9. Qxf3 {[%clk 0:02:50]}  e6 {[%clk 0:02:05]} 10. O-O {[%clk 0:02:44]}  a6 {[%clk 0:01:57]} 11. Be2 {[%clk 0:02:32]}  Be7 {[%clk 0:01:41]} 12. Bh2 {[%clk 0:02:28]}  b5 {[%clk 0:01:25]} 13. Bd3 {[%clk 0:02:27]}  O-O {[%clk 0:01:19]} 14. e4 {[%clk 0:02:24]}  dxe4 {[%clk 0:00:22]} 15. Nxe4 {[%clk 0:02:22]}  Nxe4 {[%clk 0:00:20]} 16. Qxe4 {[%clk 0:02:21]}  g6 {[%clk 0:00:16]} 17. c3 {[%clk 0:02:09]}  Rac8 {[%clk 0:00:15]} 18. a4 {[%clk 0:02:07]}  Bf6 {[%clk 0:00:14]} 19. axb5 {[%clk 0:02:01]}  axb5 {[%clk 0:00:14]} 20. Ra6 {[%clk 0:01:50]}  b4 {[%clk 0:00:11]} 21. Rc1 {[%clk 0:01:43]}  bxc3 {[%clk 0:00:11]} 22. bxc3 {[%clk 0:01:42]}  Nb4 {[%clk 0:00:11]} 23. Bd6 {[%clk 0:01:35]}  Qg5 {[%clk 0:00:07]} 24. f4 {[%clk 0:01:31]}  Qd5 {[%clk 0:00:02]} 25. Bxb4 {[%clk 0:01:27]}  Rfd8 {[%clk 0:00:02]} 26. Qxd5 {[%clk 0:01:26]}  Rxd5 {[%clk 0:00:02]} 27. Be4 {[%clk 0:01:25]}  Rd4 {[%clk 0:00:02]} 28. Bb7 {[%clk 0:01:19]} 1-0


[Site "https://www.chess.com"]

[Event "Titled Tuesday Blitz December 27 Late 2022"]
[White "Guevara Sanchez, Erick Marvin"]
[Black "Hoffmann, Asa"]
[WhiteFideId "6700136"]
[BlackFideId "2001470"]
[WhiteElo "2073"]
[BlackElo "2185"]
[Result "0-1"]
[Round "05"]
[TimeControl "180+2"]
[Date "2022.12.27"]
[WhiteClock "0:00:20"]
[BlackClock "0:01:08"]

1. e4 {[%clk 0:03:00]}  d6 {[%clk 0:02:59]} 2. d4 {[%clk 0:03:00]}  Nf6 {[%clk 0:02:55]} 3. Nc3 {[%clk 0:03:00]}  c6 {[%clk 0:02:55]} 4. Be3 {[%clk 0:02:59]}  Ng4 {[%clk 0:02:52]} 5. Bd2 {[%clk 0:02:54]}  Qb6 {[%clk 0:02:50]} 6. f3 {[%clk 0:02:41]}  Nf6 {[%clk 0:02:46]} 7. Nge2 {[%clk 0:02:29]}  e5 {[%clk 0:02:44]} 8. Be3 {[%clk 0:02:22]}  Qxb2 {[%clk 0:02:35]} 9. Rb1 {[%clk 0:02:20]}  Qa3 {[%clk 0:02:35]} 10. Rb3 {[%clk 0:02:19]}  Qa5 {[%clk 0:02:34]} 11. d5 {[%clk 0:02:13]}  Qc7 {[%clk 0:02:31]} 12. Ng3 {[%clk 0:02:09]}  Be7 {[%clk 0:02:30]} 13. Bc4 {[%clk 0:02:04]}  c5 {[%clk 0:02:23]} 14. O-O {[%clk 0:01:57]}  a6 {[%clk 0:02:23]} 15. a4 {[%clk 0:01:55]}  b6 {[%clk 0:02:22]} 16. Qb1 {[%clk 0:01:48]}  Nbd7 {[%clk 0:02:22]} 17. Nf5 {[%clk 0:01:45]}  Bf8 {[%clk 0:02:22]} 18. f4 {[%clk 0:01:40]}  g6 {[%clk 0:02:21]} 19. fxe5 {[%clk 0:01:36]}  Nxe5 {[%clk 0:02:19]} 20. Nxd6+ {[%clk 0:01:13]}  Bxd6 {[%clk 0:02:14]} 21. Rxf6 {[%clk 0:01:10]}  Nxc4 {[%clk 0:02:13]} 22. Bh6 {[%clk 0:01:09]}  Be5 {[%clk 0:02:04]} 23. Rc6 {[%clk 0:01:06]}  Qe7 {[%clk 0:01:57]} 24. Qf1 {[%clk 0:01:01]}  Na5 {[%clk 0:01:52]} 25. Rcxb6 {[%clk 0:00:45]}  Nxb3 {[%clk 0:01:51]} 26. Rxb3 {[%clk 0:00:46]}  Qh4 {[%clk 0:01:40]} 27. g3 {[%clk 0:00:33]}  Qxh6 {[%clk 0:01:36]} 28. Ne2 {[%clk 0:00:30]}  O-O {[%clk 0:01:33]} 29. Nf4 {[%clk 0:00:28]}  Bxf4 {[%clk 0:01:26]} 30. gxf4 {[%clk 0:00:29]}  Re8 {[%clk 0:01:26]} 31. e5 {[%clk 0:00:29]}  Bf5 {[%clk 0:01:25]} 32. Rb6 {[%clk 0:00:24]}  Rab8 {[%clk 0:01:18]} 33. Rxa6 {[%clk 0:00:21]}  Bxc2 {[%clk 0:01:16]} 34. Qc4 {[%clk 0:00:19]}  Rb4 {[%clk 0:01:09]} 35. Kg2 {[%clk 0:00:20]}  Rxc4 {[%clk 0:01:08]} 0-1


[Site "https://www.chess.com"]

[Event "Titled Tuesday Blitz December 27 Late 2022"]
[White "Jones, Gawain C B"]
[Black "Adewumi, Tanitoluwa"]
[WhiteFideId "409561"]
[BlackFideId "30966396"]
[WhiteElo "2618"]
[BlackElo "2283"]
[Result "1-0"]
[Round "05"]
[TimeControl "180+2"]
[Date "2022.12.27"]
[WhiteClock "0:02:09"]
[BlackClock "0:00:03"]

1. e4 {[%clk 0:02:59]}  c5 {[%clk 0:00:18]} 2. c3 {[%clk 0:02:57]}  e6 {[%clk 0:00:18]} 3. d4 {[%clk 0:02:56]}  Nf6 {[%clk 0:00:18]} 4. e5 {[%clk 0:02:55]}  Nd5 {[%clk 0:00:19]} 5. c4 {[%clk 0:02:51]}  Ne7 {[%clk 0:00:12]} 6. d5 {[%clk 0:02:37]}  d6 {[%clk 0:00:11]} 7. exd6 {[%clk 0:02:36]}  Qxd6 {[%clk 0:00:11]} 8. Nc3 {[%clk 0:02:36]}  exd5 {[%clk 0:00:10]} 9. cxd5 {[%clk 0:02:36]}  Bf5 {[%clk 0:00:10]} 10. Nb5 {[%clk 0:02:33]}  Qe5+ {[%clk 0:00:10]} 11. Be3 {[%clk 0:02:32]}  a6 {[%clk 0:00:09]} 12. Nf3 {[%clk 0:02:32]}  Qxb2 {[%clk 0:00:08]} 13. Nc7+ {[%clk 0:02:21]}  Kd7 {[%clk 0:00:08]} 14. Nxa8 {[%clk 0:02:21]}  Ng6 {[%clk 0:00:04]} 15. Be2 {[%clk 0:02:15]}  Bd6 {[%clk 0:00:04]} 16. O-O {[%clk 0:02:14]}  Re8 {[%clk 0:00:03]} 17. Bd3 {[%clk 0:02:14]}  Bxd3 {[%clk 0:00:02]} 18. Qxd3 {[%clk 0:02:15]}  c4 {[%clk 0:00:03]} 19. Qf5+ {[%clk 0:02:12]}  Kd8 {[%clk 0:00:03]} 20. Qxf7 {[%clk 0:02:09]} 1-0


[Site "https://www.chess.com"]

[Event "Titled Tuesday Blitz December 27 Late 2022"]
[White "Joubert, Dantelle"]
[Black "Yano, William Jorge Froes"]
[WhiteFideId "14310813"]
[BlackFideId "2112949"]
[WhiteElo "1566"]
[BlackElo "2045"]
[Result "0-1"]
[Round "05"]
[TimeControl "180+2"]
[Date "2022.12.27"]
[WhiteClock "0:00:49"]
[BlackClock "0:01:41"]

1. d4 {[%clk 0:03:00]}  Nf6 {[%clk 0:02:59]} 2. c4 {[%clk 0:03:00]}  c5 {[%clk 0:02:59]} 3. d5 {[%clk 0:02:59]}  b5 {[%clk 0:03:00]} 4. cxb5 {[%clk 0:02:57]}  a6 {[%clk 0:03:00]} 5. bxa6 {[%clk 0:02:56]}  g6 {[%clk 0:03:00]} 6. Nc3 {[%clk 0:02:56]}  Bxa6 {[%clk 0:03:00]} 7. e4 {[%clk 0:02:56]}  Bxf1 {[%clk 0:03:01]} 8. Kxf1 {[%clk 0:02:57]}  d6 {[%clk 0:03:01]} 9. g3 {[%clk 0:02:55]}  Bg7 {[%clk 0:03:02]} 10. Kg2 {[%clk 0:02:55]}  O-O {[%clk 0:03:02]} 11. Nf3 {[%clk 0:02:54]}  Ne8 {[%clk 0:03:00]} 12. Re1 {[%clk 0:02:51]}  Nd7 {[%clk 0:03:00]} 13. a4 {[%clk 0:02:27]}  Nc7 {[%clk 0:02:45]} 14. Qc2 {[%clk 0:01:57]}  Ra6 {[%clk 0:02:44]} 15. Bg5 {[%clk 0:01:55]}  f6 {[%clk 0:02:40]} 16. Bd2 {[%clk 0:01:41]}  Qa8 {[%clk 0:02:40]} 17. Ra3 {[%clk 0:01:27]}  Rb8 {[%clk 0:02:39]} 18. b3 {[%clk 0:01:22]}  Bf8 {[%clk 0:02:02]} 19. h4 {[%clk 0:01:18]}  f5 {[%clk 0:01:47]} 20. exf5 {[%clk 0:01:12]}  Nxd5 {[%clk 0:01:48]} 21. fxg6 {[%clk 0:01:05]}  N7f6 {[%clk 0:01:43]} 22. gxh7+ {[%clk 0:00:53]}  Kh8 {[%clk 0:01:43]} 23. Ng5 {[%clk 0:00:49]}  Nf4+ {[%clk 0:01:41]} 0-1


[Site "https://www.chess.com"]